bitfinex/quotes_BTCUSD_20250225
["timestamp","ask_amount","ask_price","bid_price","bid_amount"]
[1740518499130,0.1696,88444.0,88435.0,0.0759]
[1740518499294,0.1696,88444.0,88438.0,0.004]
[1740518499478,0.1696,88444.0,88438.0,0.002]
[1740518499675,0.1696,88444.0,88435.0,0.247515]
[1740518499894,0.03901768,88448.0,88435.0,0.0779]
[1740518500072,0.169594,88447.0,88438.0,0.16961]
[1740518500258,0.03901768,88448.0,88435.0,0.305053]
[1740518500458,0.03901768,88448.0,88435.0,0.0789]
[1740518500762,0.169601,88443.0,88435.0,0.0789]
[1740518501171,0.03901768,88448.0,88436.0,0.0491]
[1740518501369,0.0008459,88448.0,88443.0,0.09044044]
[1740518501636,0.169598,88444.0,88443.0,0.09044044]
[1740518501785,0.0008459,88448.0,88443.0,0.09044044]
[1740518502194,0.0008459,88448.0,88447.0,0.169593]
[1740518503938,0.0008459,88448.0,88447.0,0.494693]
[1740518504138,0.0008459,88448.0,88447.0,0.572793]
[1740518504776,0.0008459,88448.0,88447.0,0.73354053]
[1740518504995,0.0008459,88448.0,88447.0,1.03354053]
[1740518505140,0.0008459,88448.0,88447.0,1.04054053]
[1740518505646,0.0008459,88448.0,88447.0,1.03354053]
[1740518506223,0.0008459,88448.0,88447.0,1.04054053]
[1740518506699,0.0008459,88448.0,88447.0,1.04754053]
[1740518507107,0.0008459,88448.0,88447.0,1.04054053]
[1740518507406,0.0008459,88448.0,88447.0,1.04754053]
[1740518511188,9e-07,88448.0,88447.0,1.59868138]
[1740518511394,0.0008459,88459.0,88458.0,0.550072]
[1740518511765,0.0008459,88459.0,88458.0,0.575172]
[1740518511915,0.0008459,88459.0,88458.0,0.586132]
[1740518513482,0.0008459,88459.0,88453.0,0.09044044]
[1740518513646,0.0008459,88459.0,88458.0,0.007]
[1740518513647,0.1704159,88459.0,88458.0,0.007]
[1740518514052,0.50964542,88459.0,88458.0,0.007]
[1740518514231,0.33922952,88459.0,88432.0,0.3251]
[1740518514439,0.01454085,88457.0,88421.0,0.3251]
[1740518514657,0.169608,88440.0,88424.0,0.169636]
[1740518514889,0.01454085,88458.0,88421.0,0.3251]
[1740518515176,0.226149,88437.0,88421.0,0.3251]
[1740518515376,0.226126,88446.0,88421.0,0.3251]
[1740518515556,0.169612,88438.0,88422.0,0.0074299]
[1740518515768,0.001,88457.0,88422.0,0.0074299]
[1740518515975,0.22053539,88454.0,88422.0,0.0074299]
[1740518516202,0.169624,88431.0,88420.0,0.00012619]
[1740518516531,0.169622,88432.0,88420.0,0.00012619]
[1740518516702,0.169625,88431.0,88420.0,0.00012619]
[1740518516881,0.001,88446.0,88421.0,0.00635544]
[1740518517081,0.169612,88437.0,88423.0,0.169637]
[1740518517263,0.001,88446.0,88421.0,0.00635544]
[1740518517464,0.001,88446.0,88437.0,0.09044044]
[1740518517890,0.03825479,88459.0,88438.0,0.23273914]
[1740518517891,0.169585,88452.0,88438.0,0.23273914]
[1740518518090,0.03825479,88459.0,88438.0,0.00659314]
[1740518518268,0.003,88454.0,88447.0,0.169593]
[1740518518483,0.003,88454.0,88441.0,0.226137]
[1740518518776,0.169587,88450.0,88438.0,0.226144]
[1740518518977,0.01454085,88472.0,88441.0,0.169603]
[1740518519223,0.01454085,88472.0,88442.0,0.00659238]
[1740518519396,0.31454085,88472.0,88444.0,0.169598]
[1740518519601,0.31454085,88472.0,88441.0,0.226138]
[1740518519602,0.3,88467.0,88443.0,0.00659219]
[1740518519949,0.169582,88453.0,88445.0,0.00659181]
[1740518520087,0.169582,88453.0,88444.0,0.006592]
[1740518520291,0.226105,88455.0,88446.0,0.00659162]
[1740518520488,0.3,88467.0,88442.0,0.169601]
[1740518520685,0.226109,88453.0,88441.0,0.169604]
[1740518520949,0.169584,88452.0,88443.0,0.00659219]
[1740518521236,0.169584,88452.0,88445.0,0.003]
[1740518521461,0.0008464,88448.0,88444.0,0.006592]
[1740518521647,0.0008464,88448.0,88446.0,0.00659162]
[1740518521848,0.469595,88446.0,88445.0,0.00659181]
[1740518522135,0.3,88439.0,88410.0,0.09044044]
[1740518522309,0.3,88437.0,88410.0,0.09044044]
[1740518522512,0.22615,88437.0,88414.0,0.169655]
[1740518522834,0.3,88438.0,88411.0,0.16966]
[1740518523016,0.169639,88423.0,88411.0,0.16966]
[1740518523191,0.3,88438.0,88411.0,0.16966]
[1740518523192,0.169634,88426.0,88411.0,0.226215]
[1740518523403,0.169637,88424.0,88417.0,0.00575346]
[1740518523608,0.3,88432.0,88417.0,0.00575346]
[1740518524005,0.169623,88431.0,88417.0,0.00575346]
[1740518524210,0.169633,88426.0,88417.0,0.00575346]
[1740518524404,0.03991658,88431.0,88417.0,0.00575346]
[1740518524613,0.169639,88423.0,88417.0,0.00575346]
[1740518525026,0.3,88432.0,88417.0,0.00575346]
[1740518525213,0.169637,88424.0,88416.0,0.05082619]
[1740518525414,0.226177,88426.0,88416.0,0.04682619]
[1740518525710,0.03852746,88431.0,88417.0,0.01215753]
[1740518525914,0.3,88432.0,88417.0,0.005]
[1740518526153,0.169636,88425.0,88417.0,0.006]
[1740518526332,0.169636,88425.0,88417.0,0.001]
[1740518526530,0.169636,88425.0,88418.0,0.00722085]
[1740518526729,0.169638,88424.0,88418.0,0.00722085]
[1740518526935,0.169646,88419.0,88418.0,0.00722085]
[1740518527173,0.469646,88419.0,88418.0,0.00722085]
[1740518527363,0.46965,88417.0,88416.0,0.00312619]
[1740518527609,0.48419085,88417.0,88416.0,0.00712619]
[1740518527757,0.48419085,88417.0,88416.0,0.00412619]
[1740518528787,0.48419085,88417.0,88416.0,0.00012619]
[1740518528986,0.48419085,88417.0,88379.0,0.3051892]
[1740518528987,0.469675,88404.0,88379.0,0.0016932]
[1740518529191,0.58642835,88404.0,88379.0,0.0016932]
[1740518529392,0.68642835,88404.0,88379.0,0.0016932]
[1740518529792,0.169721,88380.0,88379.0,0.0016932]
[1740518530019,0.59279805,88403.0,88379.0,0.0016932]
[1740518530194,0.59279805,88403.0,88380.0,0.22174044]
[1740518530195,0.2782572,88403.0,88380.0,0.22174044]
[1740518530396,0.003,88417.0,88395.0,0.226256]
[1740518530617,0.003,88417.0,88396.0,0.00746651]
[1740518530819,0.005,88404.0,88396.0,0.23371951]
[1740518531138,0.169689,88397.0,88396.0,0.0079547]
[1740518531543,0.169689,88397.0,88396.0,0.00048819]
[1740518531902,0.005,88403.0,88396.0,0.00048819]
[1740518532138,0.005,88403.0,88402.0,0.169679]
[1740518532339,0.005,88403.0,88402.0,0.248979]
[1740518532540,0.005,88403.0,88402.0,0.25641326]
[1740518533357,0.005,88403.0,88402.0,0.08673426]
[1740518533706,0.169677,88403.0,88402.0,0.00743426]
[1740518534050,0.169682,88401.0,88396.0,0.00448819]
[1740518534268,0.169677,88403.0,88402.0,0.001]
[1740518534562,0.3,88423.0,88402.0,0.005]
[1740518534904,0.1568459,88454.0,88412.0,0.226212]
[1740518535131,0.2269684,88448.0,88412.0,0.226212]
[1740518535335,0.3,88446.0,88413.0,0.08312304]
[1740518535460,0.05791036,88445.0,88413.0,0.08312304]
[1740518535659,0.169675,88405.0,88399.0,0.0771]
[1740518536005,0.169665,88409.0,88401.0,0.09044044]
[1740518536209,0.226214,88412.0,88401.0,0.09044044]
[1740518536367,0.169668,88408.0,88401.0,0.09044044]
[1740518536574,0.169668,88408.0,88402.0,0.00740536]
[1740518536768,0.226175,88427.0,88402.0,0.00740536]
[1740518536769,0.169677,88403.0,88402.0,0.00740536]
[1740518537231,0.22618,88425.0,88403.0,0.00055222]
[1740518537232,0.31454085,88424.0,88403.0,0.00055222]
[1740518537588,0.169674,88405.0,88403.0,0.00055222]
[1740518537771,0.169675,88404.0,88403.0,0.00055222]
[1740518537971,0.00044778,88403.0,88402.0,0.009]
[1740518538200,0.17012478,88403.0,88402.0,0.004]
[1740518538360,0.47012478,88403.0,88402.0,0.004]
[1740518538570,0.169689,88397.0,88396.0,0.00048819]
[1740518538774,0.48422985,88397.0,88396.0,0.00048819]
[1740518539237,0.51751972,88397.0,88396.0,0.00048819]
[1740518540223,0.79577692,88397.0,88396.0,0.00048819]
[1740518540422,0.79577692,88397.0,88359.0,0.0787]
[1740518540423,0.469721,88380.0,88359.0,0.0787]
[1740518540768,0.48426185,88380.0,88379.0,0.00183933]
[1740518541920,0.48826185,88380.0,88379.0,0.00483933]
[1740518542183,0.49667891,88380.0,88379.0,0.00183933]
[1740518543275,0.169765,88357.0,88356.0,0.0016916]
[1740518543486,0.169765,88357.0,88356.0,0.002112]
[1740518544313,0.20393656,88357.0,88356.0,0.002112]
[1740518544873,0.20293656,88357.0,88356.0,0.007112]
[1740518545079,0.20393656,88357.0,88356.0,0.002112]
[1740518545440,0.20393656,88357.0,88356.0,0.006112]
[1740518546313,0.22478093,88357.0,88356.0,0.006112]
[1740518546519,0.22378093,88357.0,88356.0,0.006112]
[1740518547422,0.22378093,88357.0,88356.0,0.003112]
[1740518547621,0.22378093,88357.0,88356.0,0.005112]
[1740518548008,0.22378093,88357.0,88356.0,0.003112]
[1740518548183,0.22378093,88357.0,88356.0,0.005112]
[1740518548593,0.20293656,88357.0,88356.0,0.005112]
[1740518556422,0.50293656,88357.0,88356.0,0.005112]
[1740518557008,0.29584067,88357.0,88356.0,0.002112]
[1740518557207,0.46560567,88357.0,88356.0,0.002112]
[1740518557407,0.46560567,88357.0,88356.0,0.003112]
[1740518557637,0.46560567,88357.0,88356.0,0.002112]
[1740518557836,0.52097458,88357.0,88356.0,0.002112]
[1740518558017,0.52197458,88357.0,88356.0,0.002112]
[1740518558217,0.52297458,88357.0,88356.0,0.002112]
[1740518558935,0.53135748,88357.0,88356.0,0.002112]
[1740518564115,0.02291624,88357.0,88356.0,0.218079]
[1740518564500,0.02291624,88357.0,88356.0,0.22446719]
[1740518564825,0.02191624,88357.0,88356.0,0.22446719]
[1740518564963,0.02291624,88357.0,88356.0,0.22446719]
[1740518565590,0.02191624,88357.0,88356.0,0.22446719]
[1740518565915,0.02291624,88357.0,88356.0,0.22446719]
[1740518566357,0.02191624,88357.0,88356.0,0.22446719]
[1740518566681,0.02291624,88357.0,88356.0,0.22446719]
[1740518567041,0.02291624,88357.0,88356.0,0.30106719]
[1740518567219,0.19159993,88357.0,88356.0,0.13130019]
[1740518567397,0.02083493,88357.0,88356.0,0.05470019]
[1740518567598,0.02183493,88357.0,88356.0,0.05470019]
[1740518567920,0.02283493,88357.0,88356.0,0.23146719]
[1740518568083,0.02283493,88357.0,88356.0,0.22446719]
[1740518568282,0.02283493,88357.0,88356.0,0.23146719]
[1740518568709,0.02183493,88357.0,88356.0,0.22446719]
[1740518568915,0.02083493,88357.0,88356.0,0.22446719]
[1740518569321,0.001,88357.0,88356.0,0.30186719]
[1740518569781,0.0331545,88370.0,88356.0,0.13210019]
[1740518569950,0.226258,88395.0,88378.0,0.169725]
[1740518570149,0.226244,88400.0,88378.0,0.296625]
[1740518570371,0.226266,88392.0,88378.0,0.30422371]
[1740518570674,0.226252,88397.0,88378.0,0.30422371]
[1740518570882,0.03365531,88383.0,88378.0,0.13449871]
[1740518571034,0.20337131,88383.0,88378.0,0.30422371]
[1740518571242,0.03365531,88383.0,88378.0,0.30422371]
[1740518571441,0.03365531,88383.0,88378.0,0.30922371]
[1740518571780,0.20337231,88383.0,88378.0,0.30922371]
[1740518572009,0.03365531,88383.0,88378.0,0.30922371]
[1740518572954,0.3,88386.0,88378.0,0.30922371]
[1740518573156,0.03443363,88385.0,88378.0,0.30922371]
[1740518573360,0.03443363,88385.0,88378.0,0.31322371]
[1740518573623,0.169714,88384.0,88378.0,0.31322371]
[1740518573828,0.03443363,88385.0,88378.0,0.31322371]
[1740518574376,0.1196,88612.0,88378.0,0.31322371]
[1740518574377,0.01454085,88413.0,88378.0,0.31322371]
[1740518574778,0.03443027,88389.0,88378.0,0.31322371]
[1740518576387,0.20413427,88389.0,88378.0,0.31322371]
[1740518576783,0.03443027,88389.0,88378.0,0.31322371]
[1740518576984,0.169708,88387.0,88378.0,0.31322371]
[1740518577186,0.26070327,88389.0,88378.0,0.31322371]
[1740518577392,0.169708,88387.0,88378.0,0.31322371]
[1740518577795,0.226276,88388.0,88378.0,0.31322371]
[1740518578225,0.03443027,88389.0,88378.0,0.31322371]
[1740518578422,0.16971,88386.0,88378.0,0.31322371]
[1740518578684,0.226295,88381.0,88378.0,0.14349871]
[1740518578886,0.1705713,88379.0,88378.0,0.01659871]
[1740518579225,0.4705713,88379.0,88378.0,0.009]
[1740518579656,0.226295,88381.0,88378.0,0.005]
[1740518579854,0.03443027,88389.0,88364.0,0.13944044]
[1740518580070,0.169744,88368.0,88364.0,0.13944044]
[1740518580255,0.1,88401.0,88365.0,0.00753774]
[1740518580434,0.169744,88369.0,88365.0,0.00753774]
[1740518580645,0.169744,88368.0,88364.0,0.13944044]
[1740518580869,0.0008485,88379.0,88365.0,0.0075556]
[1740518581068,0.169748,88366.0,88365.0,0.0075556]
[1740518581434,0.169748,88366.0,88365.0,0.001]
[1740518581675,0.02092668,88367.0,88365.0,0.16975]
[1740518581829,0.02092668,88367.0,88364.0,0.30919244]
[1740518582035,0.02092668,88367.0,88365.0,0.00755961]
[1740518582237,0.02092668,88367.0,88365.0,0.01155961]
[1740518582587,0.02092668,88367.0,88365.0,0.18130861]
[1740518582801,0.226314,88373.0,88365.0,0.17730861]
[1740518583089,0.001,88367.0,88365.0,0.17730861]
[1740518583389,0.001,88367.0,88366.0,0.169748]
[1740518583703,0.001,88367.0,88366.0,0.17730742]
[1740518584307,0.169737,88372.0,88367.0,0.169746]
[1740518584454,0.169737,88372.0,88367.0,0.168746]
[1740518584654,0.16974,88371.0,88368.0,0.00755904]
[1740518584909,0.226317,88372.0,88365.0,0.006]
[1740518585182,0.226317,88372.0,88364.0,0.30919044]
[1740518585183,0.170746,88367.0,88366.0,0.005]
[1740518585504,0.171746,88367.0,88366.0,0.011]
[1740518585839,0.170746,88367.0,88366.0,0.005]
[1740518586048,0.470746,88367.0,88366.0,0.005]
[1740518586247,0.469748,88366.0,88365.0,0.004]
[1740518586451,0.48428885,88366.0,88365.0,0.004]
[1740518587454,0.169765,88357.0,88356.0,0.002112]
[1740518588079,0.26918625,88357.0,88356.0,0.002112]
[1740518588258,0.18430585,88357.0,88356.0,0.002112]
[1740518589729,0.18430585,88357.0,88356.0,0.005112]
[1740518591097,0.18430585,88357.0,88356.0,0.007112]
[1740518591664,0.18430585,88357.0,88356.0,0.005112]
[1740518592066,0.18630585,88357.0,88356.0,0.005112]
[1740518592581,0.18430585,88357.0,88356.0,0.005112]
[1740518592803,0.18630585,88357.0,88356.0,0.005112]
[1740518593011,0.18630585,88357.0,88356.0,0.002112]
[1740518593736,0.18730585,88357.0,88356.0,0.002112]
[1740518594163,0.18730585,88357.0,88333.0,0.226415]
[1740518594164,0.169811,88333.0,88332.0,0.0016912]
[1740518594496,0.169811,88333.0,88332.0,0.00183773]
[1740518594939,0.21157092,88333.0,88332.0,0.00183773]
[1740518595362,0.51157092,88333.0,88332.0,0.00283773]
[1740518595863,0.52611177,88333.0,88332.0,0.00183773]
[1740518596060,0.52611177,88333.0,88332.0,0.00483773]
[1740518596625,0.51157092,88333.0,88332.0,0.00683773]
[1740518596831,0.51157092,88333.0,88332.0,0.00483773]
[1740518597284,0.51357092,88333.0,88332.0,0.00483773]
[1740518597486,0.002,88333.0,88332.0,0.17165073]
[1740518597714,0.005,88333.0,88332.0,0.29925073]
[1740518597858,0.174811,88333.0,88332.0,0.13723233]
[1740518598066,0.171811,88333.0,88332.0,0.13723233]
[1740518598601,0.174811,88333.0,88332.0,0.13723233]
[1740518598777,0.174811,88333.0,88332.0,0.00963233]
[1740518599101,0.169811,88333.0,88332.0,0.00183773]
[1740518599263,0.171811,88333.0,88332.0,0.00383773]
[1740518599861,0.171811,88333.0,88332.0,0.00783773]
[1740518600091,0.169811,88333.0,88332.0,0.01163233]
[1740518600496,0.169811,88333.0,88332.0,0.01263233]
[1740518600675,0.169811,88333.0,88332.0,0.00383773]
[1740518601297,0.01236502,88334.0,88332.0,0.00183773]
[1740518601499,0.169811,88333.0,88332.0,0.00483773]
[1740518601697,0.19065443,88333.0,88332.0,0.00483773]
[1740518602324,0.19065443,88333.0,88332.0,0.00183773]
[1740518602699,0.19065443,88333.0,88332.0,0.00583773]
[1740518603725,0.19065443,88333.0,88332.0,0.00883773]
[1740518604246,0.59352054,88333.0,88332.0,0.00583773]
[1740518604450,0.59352054,88333.0,88288.0,0.077]
[1740518604451,0.169846,88315.0,88300.0,4e-05]
[1740518604675,0.48438685,88315.0,88314.0,0.00190798]
[1740518605472,0.50523028,88315.0,88314.0,0.00190798]
[1740518605613,0.51356731,88315.0,88314.0,0.00190798]
[1740518607042,0.52556731,88315.0,88314.0,0.00190798]
[1740518607441,0.51356731,88315.0,88314.0,0.00190798]
[1740518607862,0.52256731,88315.0,88314.0,0.00190798]
[1740518610134,0.80082451,88315.0,88314.0,0.00190798]
[1740518610463,0.78628366,88315.0,88314.0,0.00190798]
[1740518610671,0.30810063,88315.0,88314.0,0.00190798]
[1740518611097,0.47794663,88315.0,88314.0,0.00190798]
[1740518611335,0.47794663,88315.0,88314.0,0.00987681]
[1740518611493,0.47394663,88315.0,88314.0,0.00190798]
[1740518611695,0.46894663,88315.0,88314.0,0.00190798]
[1740518611918,0.47194663,88315.0,88314.0,0.00190798]
[1740518612287,0.02384343,88315.0,88314.0,0.17972481]
[1740518612486,0.02384343,88315.0,88314.0,0.17175598]
[1740518612641,0.02384343,88315.0,88314.0,0.17968379]
[1740518613020,0.02684343,88315.0,88314.0,0.17968379]
[1740518613227,0.02084343,88315.0,88314.0,0.17968379]
[1740518613425,0.02084343,88315.0,88314.0,0.18068379]
[1740518613636,0.02084343,88315.0,88314.0,0.18468379]
[1740518613831,0.02084343,88315.0,88314.0,0.18368379]
[1740518614253,0.02084343,88315.0,88314.0,0.18668379]
[1740518614453,0.02084343,88322.0,88315.0,0.226459]
[1740518614660,0.19067643,88322.0,88316.0,0.169844]
[1740518614855,0.02084343,88322.0,88317.0,0.169841]
[1740518615070,0.02084343,88322.0,88318.0,0.00791165]
[1740518615402,0.02084343,88322.0,88314.0,0.00890798]
[1740518615671,0.226446,88321.0,88314.0,0.00890798]
[1740518615877,0.226454,88319.0,88314.0,0.00890798]
[1740518616174,0.169846,88315.0,88314.0,0.00490798]
[1740518616381,0.169846,88316.0,88314.0,0.00190798]
[1740518616610,0.169846,88316.0,88315.0,0.001]
[1740518616784,0.0008488,88327.0,88315.0,0.001]
[1740518616991,0.0008488,88327.0,88318.0,0.09044044]
[1740518617150,0.0008488,88327.0,88325.0,0.169825]
[1740518617352,0.0008488,88327.0,88318.0,0.09044044]
[1740518617547,0.0008488,88327.0,88326.0,0.169825]
[1740518618311,0.02273554,88327.0,88326.0,0.169825]
[1740518619225,0.02373554,88327.0,88326.0,0.169825]
[1740518619435,0.02273554,88327.0,88326.0,0.169825]
[1740518619570,0.02173554,88327.0,88326.0,0.169825]
[1740518619752,0.02273554,88327.0,88326.0,0.175825]
[1740518620080,0.02273554,88327.0,88326.0,0.180825]
[1740518620081,0.02373554,88327.0,88326.0,0.180825]
[1740518621700,0.02373554,88327.0,88326.0,0.011]
[1740518623853,0.19355854,88327.0,88326.0,0.011]
[1740518624490,0.02373554,88327.0,88326.0,0.011]
[1740518624854,0.19355854,88327.0,88326.0,0.011]
[1740518625079,0.02373554,88327.0,88326.0,0.01931695]
[1740518625359,0.02373554,88327.0,88326.0,0.011]
[1740518625538,0.02373554,88327.0,88326.0,0.01931695]
[1740518627019,0.02373554,88327.0,88326.0,0.26604195]
[1740518627220,0.02373554,88327.0,88326.0,0.31224195]
[1740518627424,0.02373554,88327.0,88326.0,0.3534256]
[1740518627810,0.02373554,88327.0,88326.0,0.6534256]
[1740518628522,0.02373554,88327.0,88326.0,0.61224195]
[1740518628726,0.0028488,88327.0,88326.0,0.14241695]
[1740518629272,0.0018488,88327.0,88326.0,0.1291]
[1740518629476,0.0018488,88327.0,88326.0,0.14187649]
[1740518629677,0.0008488,88327.0,88326.0,0.13587649]
[1740518630214,0.0008488,88327.0,88326.0,0.13787649]
[1740518630431,0.0008488,88327.0,88326.0,0.13587649]
[1740518631222,0.0008488,88327.0,88326.0,0.31070149]
[1740518633088,0.226352,88358.0,88326.0,0.31070149]
[1740518633089,0.226325,88369.0,88348.0,0.169783]
[1740518633260,0.226325,88369.0,88348.0,0.293283]
[1740518633418,0.169734,88374.0,88348.0,0.293283]
[1740518633620,0.226315,88373.0,88348.0,0.30216135]
[1740518634091,0.169744,88369.0,88348.0,0.30216135]
[1740518634263,0.0008485,88379.0,88348.0,0.30216135]
[1740518634446,0.04200309,88363.0,88348.0,0.30930689]
[1740518634639,0.04200309,88363.0,88348.0,0.30230689]
[1740518635042,0.226314,88373.0,88348.0,0.30230689]
[1740518635239,0.169742,88370.0,88348.0,0.30230689]
[1740518635480,0.169741,88370.0,88348.0,0.30230689]
[1740518635638,0.169741,88370.0,88348.0,0.30930689]
[1740518635843,0.04291767,88366.0,88348.0,0.30930689]
[1740518636275,0.226301,88378.0,88348.0,0.30930689]
[1740518636427,0.169739,88371.0,88348.0,0.30930689]
[1740518636794,0.169744,88369.0,88348.0,0.31630689]
[1740518636970,0.169745,88368.0,88348.0,0.31630689]
[1740518637169,0.04114081,88366.0,88348.0,0.31630689]
[1740518638224,0.19163088,88370.0,88351.0,0.226367]
[1740518638426,0.169739,88371.0,88356.0,0.09044044]
[1740518638568,0.169739,88371.0,88364.0,0.16975]
[1740518638770,0.04209435,88371.0,88362.0,0.226339]
[1740518639143,0.22629,88382.0,88349.0,0.226374]
[1740518639308,0.22629,88382.0,88363.0,0.00884436]
[1740518639509,0.22629,88382.0,88357.0,0.169765]
[1740518639830,0.2263,88378.0,88364.0,0.00884417]
[1740518640142,0.169744,88368.0,88365.0,0.00884397]
[1740518640332,0.226321,88370.0,88365.0,0.00884397]
[1740518640556,0.169748,88366.0,88365.0,0.00884397]
[1740518640731,0.226303,88377.0,88349.0,0.09044044]
[1740518640987,0.226303,88377.0,88351.0,0.169775]
[1740518641110,0.226303,88377.0,88350.0,0.00884684]
[1740518641316,0.169756,88363.0,88357.0,0.001]
[1740518641521,0.226336,88365.0,88357.0,0.001]
[1740518641729,0.226338,88364.0,88358.0,0.00884531]
[1740518642105,0.226338,88364.0,88309.0,0.12447144]
[1740518642106,0.169781,88349.0,88348.0,0.00014554]
[1740518642318,0.169779,88350.0,88348.0,0.00014554]
[1740518642516,0.169781,88349.0,88348.0,0.00014554]
[1740518642872,0.226367,88352.0,88348.0,0.00014554]
[1740518643073,0.19067706,88349.0,88348.0,0.00014554]
[1740518643433,0.19067706,88349.0,88348.0,0.00314554]
[1740518643660,0.19067706,88349.0,88348.0,0.00714554]
[1740518643878,0.19067706,88349.0,88348.0,0.00314554]
[1740518644295,0.169781,88349.0,88348.0,0.00514554]
[1740518644522,0.16978,88350.0,88348.0,0.00514554]
[1740518644759,0.169777,88351.0,88348.0,0.01094906]
[1740518644958,0.169777,88351.0,88348.0,0.01194906]
[1740518645207,0.169779,88350.0,88348.0,0.00314554]
[1740518645443,0.169779,88350.0,88348.0,0.00214554]
[1740518645630,0.169781,88349.0,88348.0,0.00214554]
[1740518646238,0.169781,88349.0,88348.0,0.00014554]
[1740518646670,0.169781,88349.0,88348.0,0.00114554]
[1740518646850,0.169781,88349.0,88348.0,0.00014554]
[1740518647229,0.01454085,88359.0,88348.0,0.00214554]
[1740518647435,0.1,88387.0,88348.0,0.00214554]
[1740518647595,0.169744,88369.0,88351.0,0.09044044]
[1740518647793,0.5045952,88364.0,88351.0,0.09044044]
[1740518648073,0.2782572,88364.0,88352.0,0.17857787]
[1740518648229,0.2782572,88364.0,88351.0,0.09044044]
[1740518648428,0.2782572,88364.0,88355.0,0.226358]
[1740518648653,0.2782572,88364.0,88351.0,0.09044044]
[1740518648851,0.2812572,88364.0,88356.0,0.00877898]
[1740518649020,0.2812572,88364.0,88360.0,0.169758]
[1740518649227,0.2782572,88364.0,88351.0,0.09044044]
[1740518649427,0.169757,88362.0,88361.0,0.00877803]
[1740518649628,0.169757,88362.0,88351.0,0.31680844]
[1740518649860,0.2782572,88364.0,88356.0,0.169765]
[1740518650059,0.2782572,88364.0,88352.0,0.00877974]
[1740518650387,0.2782572,88364.0,88360.0,0.169758]
[1740518650691,0.5045942,88364.0,88353.0,0.00877955]
[1740518650854,0.2782572,88364.0,88361.0,0.00877803]
[1740518651076,0.2782572,88364.0,88351.0,0.09213764]
[1740518651593,0.169749,88366.0,88355.0,0.226358]
[1740518651794,0.169752,88365.0,88356.0,0.169767]
[1740518652040,0.226331,88367.0,88356.0,0.17854598]
[1740518652221,0.31454085,88374.0,88356.0,0.00877898]
[1740518652398,0.169753,88364.0,88356.0,0.00877898]
[1740518652567,0.169755,88363.0,88356.0,0.00877898]
[1740518653383,0.169753,88364.0,88356.0,0.17854598]
[1740518653611,0.169753,88364.0,88356.0,0.17954598]
[1740518653811,0.169753,88364.0,88356.0,0.00877898]
[1740518654016,0.169756,88362.0,88356.0,0.00877898]
[1740518654225,0.169756,88362.0,88356.0,0.001]
[1740518654435,0.226329,88367.0,88356.0,0.001]
[1740518654664,0.226316,88372.0,88357.0,0.00876617]
[1740518655021,0.526304,88377.0,88357.0,0.17853017]
[1740518655229,0.169742,88370.0,88357.0,0.0792]
[1740518655535,0.3,88376.0,88359.0,0.0461]
[1740518655761,0.2782572,88378.0,88361.0,0.09044044]
[1740518655947,0.2782572,88378.0,88365.0,0.226332]
[1740518656144,0.169731,88375.0,88367.0,0.169745]
[1740518656363,0.169731,88375.0,88366.0,0.00876445]
[1740518656621,0.2782572,88378.0,88361.0,0.09044044]
[1740518656808,0.2782572,88378.0,88367.0,0.00876426]
[1740518657022,0.17822387,88395.0,88378.0,0.166725]
[1740518657266,0.2782572,88402.0,88379.0,0.0757]
[1740518657445,0.2782572,88402.0,88380.0,0.13984044]
[1740518657578,0.2782572,88402.0,88380.0,0.14857495]
[1740518657784,0.2782572,88402.0,88380.0,0.14257495]
[1740518657985,0.2782572,88402.0,88385.0,0.226281]
[1740518658207,0.3,88401.0,88381.0,0.00869015]
[1740518658541,0.04709349,88402.0,88395.0,0.169691]
[1740518658841,0.169689,88397.0,88382.0,0.00868942]
[1740518659002,0.169684,88400.0,88396.0,0.00868675]
[1740518659202,0.169684,88400.0,88391.0,0.169699]
[1740518659538,0.226243,88401.0,88390.0,0.226269]
[1740518659725,0.169685,88399.0,88392.0,0.00867094]
[1740518659919,0.04809349,88402.0,88391.0,0.00867113]
[1740518660119,0.04709349,88402.0,88391.0,0.00867113]
[1740518660322,0.169684,88400.0,88392.0,0.169698]
[1740518660570,0.169684,88400.0,88392.0,0.17836894]
[1740518660776,0.169696,88393.0,88392.0,0.00867094]
[1740518661146,0.226241,88401.0,88391.0,0.004]
[1740518661340,0.04709349,88402.0,88391.0,0.002]
[1740518661564,0.169696,88394.0,88391.0,0.002]
[1740518661783,0.169696,88394.0,88386.0,0.16971]
[1740518661990,0.00417812,88393.0,88392.0,0.01367094]
[1740518662172,0.00417812,88393.0,88392.0,0.005]
[1740518662603,0.17387412,88393.0,88392.0,0.01667094]
[1740518662889,0.00417812,88393.0,88392.0,0.005]
[1740518663093,0.17387412,88393.0,88392.0,0.005]
[1740518663332,0.00417812,88393.0,88392.0,0.002]
[1740518663686,0.17387412,88393.0,88392.0,0.002]
[1740518663886,0.17387412,88393.0,88392.0,0.01067094]
[1740518664098,0.17387412,88393.0,88392.0,0.002]
[1740518664413,0.17387412,88393.0,88392.0,0.004]
[1740518665321,0.17387412,88393.0,88392.0,0.173698]
[1740518665322,0.00417812,88393.0,88392.0,0.173698]
[1740518665531,0.00417812,88393.0,88392.0,0.255798]
[1740518665733,0.00417812,88393.0,88392.0,0.09567667]
[1740518665956,0.00417812,88393.0,88392.0,0.26537467]
[1740518666296,0.00417812,88393.0,88392.0,0.26337467]
[1740518666535,0.00417812,88393.0,88392.0,0.26837467]
[1740518666778,0.00417812,88393.0,88392.0,0.27437467]
[1740518666946,0.00417812,88393.0,88392.0,0.26737467]
[1740518667149,0.00417812,88393.0,88392.0,0.26137467]
[1740518667360,0.00417812,88393.0,88392.0,0.27337467]
[1740518667723,0.00417812,88393.0,88392.0,0.26137467]
[1740518668147,0.00417812,88393.0,88392.0,0.26837467]
[1740518669146,0.00417812,88393.0,88392.0,0.27537467]
[1740518673967,0.00417812,88393.0,88392.0,0.26837467]
[1740518674174,0.00417812,88393.0,88392.0,0.27537467]
[1740518674584,0.00417812,88393.0,88392.0,0.26837467]
[1740518674777,0.00417812,88393.0,88392.0,0.09867667]
[1740518675365,0.17387412,88393.0,88392.0,0.09867667]
[1740518675532,0.00417812,88393.0,88392.0,0.09867667]
[1740518675717,0.00417812,88393.0,88392.0,0.26837467]